bitfinex/quotes_BTCUSD_20250320
["timestamp","ask_amount","ask_price","bid_price","bid_amount"]
[1742450983346,0.35009697,86059.0,86058.0,0.007]
[1742450983546,0.15255997,86059.0,86058.0,0.007]
[1742450983797,0.16417897,86059.0,86058.0,0.007]
[1742450984758,0.17432919,86059.0,86058.0,0.007]
[1742450985822,0.15255997,86059.0,86058.0,0.007]
[1742450987538,0.16417897,86059.0,86058.0,0.007]
[1742450987960,0.15255997,86059.0,86058.0,0.007]
[1742450989753,0.07645997,86059.0,86058.0,0.007]
[1742450989956,0.03095997,86059.0,86058.0,0.007]
[1742450993136,0.04257897,86059.0,86058.0,0.007]
[1742450995438,0.01942716,86059.0,86058.0,0.14718]
[1742450995637,0.00121116,86059.0,86058.0,0.26675503]
[1742450995840,0.00121116,86059.0,86058.0,0.007]
[1742450996023,0.00121116,86059.0,86058.0,0.14718]
[1742450998380,0.01942618,86059.0,86058.0,0.14718]
[1742451002315,0.01942618,86059.0,86058.0,0.44718]
[1742451002746,0.01942618,86059.0,86058.0,0.56675503]
[1742451002953,0.00121116,86059.0,86058.0,0.64385503]
[1742451004303,0.00121116,86059.0,86058.0,0.65253218]
[1742451005339,0.00121116,86059.0,86058.0,0.64553218]
[1742451005745,0.00121116,86059.0,86058.0,0.64953218]
[1742451006227,0.00121116,86059.0,86058.0,0.65353218]
[1742451008401,0.00121116,86059.0,86058.0,0.64953218]
[1742451008563,0.00121116,86059.0,86058.0,0.65053218]
[1742451008866,0.00121116,86059.0,86058.0,0.65453218]
[1742451009705,0.00121116,86059.0,86058.0,0.52597218]
[1742451009909,0.00121116,86059.0,86058.0,0.65453218]
[1742451013506,0.002,86069.0,86068.0,0.497517]
[1742451013613,0.00204165,86069.0,86068.0,0.74939203]
[1742451013812,0.00204165,86069.0,86068.0,0.61709203]
[1742451014028,0.00204165,86069.0,86068.0,0.63827991]
[1742451014221,0.00204165,86069.0,86068.0,0.64989791]
[1742451015280,0.00204165,86069.0,86068.0,0.65189791]
[1742451015668,0.00204165,86069.0,86068.0,0.65389791]
[1742451016334,0.00204165,86069.0,86068.0,0.65189791]
[1742451016627,0.00204165,86069.0,86068.0,0.65489791]
[1742451018121,0.00221115,86069.0,86068.0,0.65489791]
[1742451018451,0.00221115,86069.0,86068.0,0.65485791]
[1742451021560,0.00221115,86069.0,86068.0,0.73555791]
[1742451022321,0.00221115,86069.0,86068.0,0.65485791]
[1742451023268,0.05151115,86069.0,86068.0,0.13352]
[1742451024514,0.06972383,86069.0,86068.0,0.13352]
[1742451024653,0.09149376,86069.0,86068.0,0.13352]
[1742451026709,0.04219376,86069.0,86068.0,0.145138]
[1742451029197,0.04219376,86069.0,86068.0,0.13352]
[1742451029543,0.04219376,86069.0,86068.0,0.145138]
[1742451029889,0.04219376,86069.0,86068.0,0.445138]
[1742451039269,0.04208861,86069.0,86068.0,0.445138]
[1742451040668,0.04208861,86069.0,86068.0,0.43352]
[1742451041281,0.04208861,86069.0,86068.0,0.445138]
[1742451042295,0.04170261,86069.0,86068.0,0.445138]
[1742451043026,0.04170261,86069.0,86068.0,0.316618]
[1742451043185,0.04170261,86069.0,86068.0,0.445138]
[1742451046959,0.04170261,86069.0,86068.0,0.56471303]
[1742451047165,0.04170261,86069.0,86068.0,0.51649303]
[1742451047372,0.04170261,86069.0,86068.0,0.64501303]
[1742451048539,0.04170261,86069.0,86068.0,0.56471303]
[1742451048941,0.01993268,86069.0,86068.0,0.56471303]
[1742451050409,0.00993268,86069.0,86068.0,0.56471303]
[1742451050710,0.0001694,86083.0,86078.0,0.011617]
[1742451050862,0.0001694,86083.0,86082.0,0.185869]
[1742451051720,0.02196258,86083.0,86082.0,0.185869]
[1742451053738,0.04017343,86083.0,86082.0,0.185869]
[1742451067240,0.01838025,86083.0,86082.0,0.185869]
[1742451067540,0.04018428,86083.0,86082.0,0.185869]
[1742451069237,0.04018428,86083.0,86079.0,0.185875]
[1742451069410,0.04018428,86083.0,86070.0,0.185893]
[1742451069411,0.185884,86076.0,86070.0,0.12852]
[1742451069553,0.011617,86079.0,86069.0,0.000339]
[1742451069757,0.011617,86079.0,86074.0,0.185886]
[1742451070166,0.07384306,86080.0,86075.0,0.185883]
[1742451070167,0.25971706,86080.0,86075.0,0.185883]
[1742451070413,0.07384306,86080.0,86069.0,0.011957]
[1742451070607,0.27133406,86080.0,86074.0,0.185885]
[1742451070765,0.07384306,86080.0,86076.0,0.18588]
[1742451071122,0.02180403,86078.0,86077.0,0.185878]
[1742451071529,0.02180403,86078.0,86076.0,0.18588]
[1742451072284,0.01838025,86083.0,86081.0,0.185871]
[1742451072456,0.01838025,86083.0,86082.0,0.185869]
[1742451073256,0.0401857,86083.0,86082.0,0.185869]
[1742451077591,0.011616,86081.0,86076.0,0.185882]
[1742451077786,0.0401857,86083.0,86076.0,0.185882]
[1742451078014,0.0401857,86083.0,86079.0,0.185873]
[1742451078201,0.0401857,86083.0,86078.0,0.185876]
[1742451078415,0.0401857,86083.0,86075.0,0.185884]
[1742451078611,0.0401857,86083.0,86071.0,0.011618]
[1742451078913,0.0401857,86083.0,86082.0,0.185869]
[1742451079454,0.02180545,86082.0,86080.0,0.185873]
[1742451080617,0.02180545,86081.0,86080.0,0.185873]
[1742451100772,0.02197495,86081.0,86080.0,0.185873]
[1742451102113,0.02197495,86081.0,86080.0,0.19441697]
[1742451104638,0.02197495,86081.0,86080.0,0.185873]
[1742451108914,0.05687121,86081.0,86080.0,0.185873]
[1742451109554,0.07041146,86081.0,86080.0,0.185873]
[1742451111190,0.07041146,86081.0,86078.0,0.185875]
[1742451111330,0.07041146,86081.0,86078.0,0.185876]
[1742451111777,0.07041146,86081.0,86079.0,0.185874]
[1742451112326,0.07041146,86081.0,86077.0,0.185879]
[1742451112510,0.05687121,86081.0,86079.0,0.185875]
[1742451112813,0.05687121,86081.0,86077.0,0.185879]
[1742451113019,0.05687121,86081.0,86078.0,0.185876]
[1742451113561,0.02180545,86080.0,86079.0,0.185874]
[1742451115358,0.02180545,86080.0,86078.0,0.185876]
[1742451116459,0.02180545,86080.0,86077.0,0.185877]
[1742451116676,0.03342245,86079.0,86073.0,0.185887]
[1742451116876,0.03342245,86079.0,86075.0,0.185883]
[1742451117294,0.02180545,86079.0,86075.0,0.185883]
[1742451117478,0.02180545,86079.0,86076.0,0.185881]
[1742451118115,0.02180545,86078.0,86076.0,0.185881]
[1742451118531,0.02180545,86078.0,86075.0,0.185883]
[1742451118774,0.02180545,86078.0,86076.0,0.18588]
[1742451119570,0.02180545,86077.0,86076.0,0.18588]
[1742451120017,0.02180545,86077.0,86076.0,0.16588]
[1742451121034,0.02180545,86077.0,86076.0,0.177497]
[1742451122811,0.02180545,86077.0,86076.0,0.254197]
[1742451124686,0.02180545,86077.0,86076.0,0.254536]
[1742451125042,0.02197495,86077.0,86076.0,0.254536]
[1742451125435,0.02197495,86077.0,86076.0,0.177836]
[1742451126431,0.0001695,86077.0,86076.0,0.177836]
[1742451131091,0.0219824,86077.0,86076.0,0.177836]
[1742451136180,0.0001695,86077.0,86076.0,0.177836]
[1742451136629,0.0001695,86077.0,86076.0,0.166219]
[1742451137205,0.0001695,86077.0,86076.0,0.177836]
[1742451140607,0.02198345,86077.0,86076.0,0.177836]
[1742451141874,0.0001695,86077.0,86076.0,0.177836]
[1742451142877,0.0001695,86077.0,86076.0,0.166219]
[1742451144576,0.02198248,86077.0,86076.0,0.177836]
[1742451147532,0.02198248,86077.0,86076.0,0.29741103]
[1742451153217,0.02198248,86077.0,86076.0,0.37361103]
[1742451153410,0.02198248,86077.0,86076.0,0.50209103]
[1742451160880,0.02198248,86077.0,86076.0,0.80209103]
[1742451161080,0.02198248,86077.0,86076.0,0.85149103]
[1742451162406,0.0001695,86077.0,86076.0,0.85149103]
[1742451162610,0.0001695,86077.0,86076.0,0.85249103]
[1742451162986,0.0001695,86077.0,86076.0,0.85149103]
[1742451163408,0.0001695,86077.0,86076.0,0.85249103]
[1742451163997,0.0001695,86077.0,86076.0,0.85349103]
[1742451165492,0.0001695,86077.0,86076.0,0.85149103]
[1742451165917,0.0001695,86077.0,86076.0,0.85449103]
[1742451175473,0.0001695,86077.0,86076.0,0.85249103]
[1742451175675,0.0001695,86077.0,86076.0,0.85149103]
[1742451176642,0.0001695,86077.0,86076.0,0.85349103]
[1742451177027,0.0001695,86077.0,86076.0,0.85549103]
[1742451177820,0.0001695,86077.0,86076.0,0.85349103]
[1742451178039,0.0001695,86077.0,86076.0,0.85149103]
[1742451178213,0.0001695,86077.0,86076.0,0.85349103]
[1742451178861,0.0001695,86077.0,86076.0,0.85449103]
[1742451179446,0.0001695,86077.0,86076.0,0.85849103]
[1742451179598,0.0001695,86077.0,86076.0,0.73001103]
[1742451179804,0.0001695,86077.0,86076.0,0.85849103]
[1742451183704,0.0001695,86077.0,86076.0,1.41141103]
[1742451186862,0.0001695,86081.0,86076.0,1.41141103]
[1742451186863,1e-06,86081.0,86080.0,0.64143085]
[1742451187079,1e-06,86081.0,86080.0,0.79695503]
[1742451188110,1e-06,86081.0,86080.0,0.80556534]
[1742451188315,1e-06,86081.0,86080.0,0.93404534]
[1742451188519,1e-06,86081.0,86080.0,0.92450449]
[1742451189204,1e-06,86081.0,86080.0,0.84605534]
[1742451189617,1e-06,86081.0,86080.0,0.71757534]
[1742451189817,1e-06,86081.0,86080.0,0.84601534]
[1742451190275,1e-06,86081.0,86080.0,0.9498428]
[1742451190447,1e-06,86081.0,86080.0,0.8689428]
[1742451191609,1e-06,86081.0,86080.0,0.96038365]
[1742451191831,1e-06,86081.0,86080.0,0.95438365]
[1742451192356,1e-06,86081.0,86080.0,0.96038365]
[1742451192759,1e-06,86081.0,86080.0,0.95438365]
[1742451193684,1e-06,86081.0,86080.0,0.85055619]
[1742451194869,1e-06,86081.0,86080.0,0.85655619]
[1742451196236,1e-06,86081.0,86080.0,0.89248849]
[1742451198023,4e-07,86083.0,86082.0,0.543785]
[1742451198229,4e-07,86083.0,86082.0,0.79583318]
[1742451199386,0.0002395,86112.0,86082.0,0.79583318]
[1742451199387,0.0002395,86112.0,86108.0,0.497426]
[1742451199606,0.0002395,86112.0,86108.0,0.74544103]
[1742451199773,0.01519497,86109.0,86108.0,0.74544103]
[1742451201244,0.01519497,86109.0,86108.0,0.76842539]
[1742451202198,0.01519497,86109.0,86108.0,0.74544103]
[1742451202471,0.01519497,86109.0,86108.0,0.74744103]
[1742451202799,0.01519497,86109.0,86108.0,0.75794935]
[1742451209083,0.01536447,86109.0,86108.0,0.75794935]
[1742451211710,0.01536447,86109.0,86108.0,0.88294935]
[1742451211930,9.7e-07,86112.0,86111.0,0.497418]
[1742451212131,9.7e-07,86112.0,86111.0,0.61699303]
[1742451213145,9.7e-07,86112.0,86111.0,0.62299303]
[1742451213684,9.7e-07,86112.0,86111.0,0.62899303]
[1742451215068,9.7e-07,86112.0,86111.0,0.64353388]
[1742451220301,0.09656975,86138.0,86137.0,0.48575]
[1742451220302,2.5e-07,86138.0,86137.0,0.48575]
[1742451220504,0.0828,86154.0,86145.0,0.497341]
[1742451220703,0.00058633,86146.0,86145.0,0.497341]
[1742451221093,0.00058633,86146.0,86139.0,0.011609]
[1742451221094,0.185735,86144.0,86141.0,0.3]
[1742451221295,0.0773,86144.0,86142.0,0.185738]
[1742451221519,0.0773,86144.0,86141.0,0.18574]
[1742451221719,0.0773,86144.0,86139.0,0.185744]
[1742451221917,0.0773,86144.0,86140.0,0.185742]
[1742451222370,0.0773,86144.0,86137.0,0.3]
[1742451222371,0.0773,86144.0,86141.0,0.18574]
[1742451222522,0.0773,86144.0,86143.0,0.185737]
[1742451222726,0.0773,86144.0,86141.0,0.18674]
[1742451222926,0.0773,86144.0,86142.0,0.185737]
[1742451226957,0.07699237,86144.0,86142.0,0.185737]
[1742451230488,0.0805,86136.0,86133.0,0.3]
[1742451230681,0.0805,86136.0,86134.0,0.185757]
[1742451230682,0.0496,86135.0,86134.0,0.185757]
[1742451230886,0.0246,86135.0,86134.0,0.185757]
[1742451231337,0.0246,86135.0,86134.0,0.197366]
[1742451231862,0.00058633,86146.0,86145.0,0.185733]
[1742451232244,0.07938633,86146.0,86145.0,0.185733]
[1742451234045,0.14608399,86146.0,86145.0,0.185733]
[1742451234503,0.01878399,86146.0,86145.0,0.197341]
[1742451235350,0.01878399,86146.0,86145.0,0.325741]
[1742451237931,0.01878399,86146.0,86145.0,0.314133]
[1742451238167,0.09718399,86146.0,86145.0,0.314133]
[1742451239406,0.09718399,86146.0,86145.0,0.1284]
[1742451239746,0.09718399,86146.0,86144.0,0.185733]
[1742451240377,0.10879199,86146.0,86140.0,0.3]
[1742451240584,0.10879199,86146.0,86139.0,0.314144]
[1742451240585,0.197341,86145.0,86142.0,0.3]
[1742451241246,0.185734,86145.0,86142.0,0.3]
[1742451241462,0.011608,86145.0,86140.0,0.185743]
[1742451241608,0.197343,86144.0,86136.0,0.18575]
[1742451241846,0.09718399,86146.0,86133.0,0.1287388]
[1742451242020,0.011608,86144.0,86138.0,0.185748]
[1742451242291,0.197344,86144.0,86136.0,0.185752]
[1742451242418,0.07898633,86146.0,86135.0,0.011609]
[1742451242616,0.011608,86145.0,86138.0,0.185746]
[1742451242820,0.011609,86140.0,86135.0,0.185753]
[1742451243044,0.197342,86145.0,86136.0,0.185751]
[1742451243224,0.197342,86145.0,86138.0,0.185746]
[1742451243442,0.197342,86145.0,86140.0,0.185743]
[1742451244875,0.07898633,86146.0,86142.0,0.185738]
[1742451245307,0.07898633,86146.0,86143.0,0.185735]
[1742451246229,0.09718417,86146.0,86143.0,0.185735]
[1742451246645,0.09718417,86146.0,86144.0,0.185734]
[1742451250681,0.09718417,86146.0,86145.0,0.185733]
[1742451251940,0.09718417,86146.0,86143.0,0.185737]
[1742451252178,0.011608,86144.0,86140.0,0.185744]
[1742451252384,0.197345,86144.0,86139.0,0.185745]
[1742451252617,0.29452417,86146.0,86140.0,0.185742]
[1742451252750,0.29452417,86146.0,86141.0,0.18574]
[1742451252988,0.185735,86145.0,86139.0,0.185745]
[1742451253185,0.185735,86145.0,86140.0,0.185743]
[1742451253393,0.09718417,86146.0,86142.0,0.185738]
[1742451254011,0.09718417,86146.0,86143.0,0.185736]
[1742451254215,0.09718417,86146.0,86134.0,0.0003388]
[1742451254416,0.011609,86140.0,86134.0,0.0003388]
[1742451254621,0.011609,86139.0,86134.0,0.0003388]
[1742451254822,0.089409,86135.0,86134.0,0.0003388]
[1742451255040,0.0778,86135.0,86134.0,0.0003388]
[1742451255660,0.089409,86135.0,86134.0,0.0013388]
[1742451255874,0.089409,86135.0,86134.0,0.0003388]
[1742451256087,0.089409,86135.0,86134.0,0.0033388]
[1742451256311,0.089409,86135.0,86134.0,0.0053388]
[1742451256548,0.089409,86135.0,86134.0,0.0023388]
[1742451257390,0.134409,86135.0,86134.0,0.0023388]
[1742451258104,0.134409,86135.0,86134.0,0.0033388]
[1742451258311,0.134409,86135.0,86134.0,0.0043388]
[1742451258512,0.15261044,86135.0,86134.0,0.0043388]
[1742451259095,0.15261044,86135.0,86134.0,0.0013388]
[1742451259665,0.15261044,86135.0,86134.0,0.0023388]
[1742451260902,0.14100144,86135.0,86134.0,0.0023388]
[1742451261221,0.15261044,86135.0,86134.0,0.0003388]
[1742451264354,0.14100144,86135.0,86134.0,0.0003388]
[1742451264887,0.15261044,86135.0,86134.0,0.0003388]
[1742451269045,0.15277994,86135.0,86134.0,0.0003388]
[1742451274818,0.10777994,86135.0,86134.0,0.0003388]
[1742451275321,0.02997994,86135.0,86134.0,0.0003388]
[1742451280297,0.01837094,86135.0,86134.0,0.0003388]
[1742451283166,0.02997994,86135.0,86134.0,0.0003388]
[1742451293280,0.14955497,86135.0,86134.0,0.0003388]
[1742451293475,0.22545497,86135.0,86134.0,0.0003388]
[1742451293729,0.20725353,86135.0,86134.0,0.0003388]
[1742451294133,0.25495353,86135.0,86134.0,0.0003388]
[1742451297004,0.27315621,86135.0,86134.0,0.0003388]
[1742451301809,0.28769706,86135.0,86134.0,0.0003388]
[1742451304673,0.69629706,86135.0,86134.0,0.0003388]
[1742451309363,0.011611,86121.0,86114.0,0.2244338]
[1742451309605,0.197399,86120.0,86114.0,0.2244338]
[1742451309807,0.18579,86119.0,86114.0,0.2244338]
[1742451310042,0.2039933,86119.0,86114.0,0.2244338]
[1742451310646,0.197404,86118.0,86114.0,0.0386348]
[1742451310848,0.011611,86118.0,86114.0,0.0386348]
[1742451311424,0.185793,86117.0,86114.0,0.0386348]
[1742451311630,0.011611,86118.0,86114.0,0.0386348]
[1742451312960,0.011611,86118.0,86113.0,0.185801]
[1742451313863,0.21543351,86119.0,86114.0,0.185798]
[1742451314419,4.164e-05,86119.0,86118.0,0.011611]
[1742451314622,4.164e-05,86119.0,86118.0,0.089111]
[1742451315040,4.164e-05,86119.0,86118.0,0.136411]
[1742451315241,4.164e-05,86119.0,86118.0,0.1375721]
[1742451316181,4.164e-05,86119.0,86118.0,0.1395721]
[1742451316639,4.164e-05,86119.0,86118.0,0.1415721]
[1742451317628,4.164e-05,86119.0,86118.0,0.16516034]
[1742451319505,4.164e-05,86119.0,86118.0,0.15238824]
[1742451319719,4.164e-05,86119.0,86118.0,0.1288]
[1742451320148,4.164e-05,86119.0,86118.0,0.2572]
[1742451322107,4.164e-05,86119.0,86118.0,0.1797]
[1742451322306,4.164e-05,86119.0,86118.0,0.0513]
[1742451323131,4.164e-05,86119.0,86118.0,0.004]
[1742451329111,0.18600024,86119.0,86118.0,0.004]
[1742451329289,0.19761124,86119.0,86118.0,0.004]
[1742451330649,0.19761124,86119.0,86118.0,0.002]
[1742451330855,0.185795,86116.0,86115.0,0.0003392]
[1742451331065,0.00021124,86119.0,86115.0,0.0003392]
[1742451331463,0.00021124,86119.0,86116.0,0.185794]
[1742451331662,0.00021124,86119.0,86115.0,0.0003392]
[1742451331663,0.18600124,86119.0,86115.0,0.0003392]
[1742451331873,0.19761224,86119.0,86115.0,0.0003392]
[1742451332439,0.21581555,86119.0,86115.0,0.0003392]
[1742451333865,0.21581555,86119.0,86115.0,0.1861352]
[1742451334072,0.01841455,86119.0,86115.0,0.1861352]
[1742451334316,0.01841455,86119.0,86115.0,0.0003392]
[1742451334317,0.20420555,86119.0,86115.0,0.0003392]
[1742451335087,0.197404,86118.0,86115.0,0.0003392]
[1742451335455,0.185795,86117.0,86115.0,0.0003392]
[1742451335654,0.197407,86117.0,86115.0,0.0003392]
[1742451337248,0.185795,86116.0,86115.0,0.0003392]
[1742451337467,0.197407,86116.0,86115.0,0.0003392]
[1742451342870,0.39518203,86116.0,86115.0,0.0003392]
[1742451346126,0.41338705,86116.0,86115.0,0.0003392]
[1742451347147,0.4279279,86116.0,86115.0,0.0003392]
[1742451347346,0.4766279,86116.0,86115.0,0.0003392]
[1742451351209,0.4995657,86116.0,86115.0,0.0003392]
[1742451351970,0.5045657,86116.0,86115.0,0.0003392]
[1742451352404,0.89496068,86116.0,86115.0,0.0003392]
[1742451353473,0.89096068,86116.0,86115.0,0.0003392]
[1742451354406,1.01940068,86116.0,86115.0,0.0003392]
[1742451354611,1.02157028,86116.0,86115.0,0.0003392]
[1742451354810,1.01957028,86116.0,86115.0,0.0003392]
[1742451355311,1.02057028,86116.0,86115.0,0.0003392]
[1742451355838,1.04277701,86116.0,86115.0,0.0003392]
[1742451356158,0.77289616,86116.0,86115.0,0.0003392]
[1742451356404,0.87839836,86116.0,86115.0,0.0003392]
[1742451357565,0.87639836,86116.0,86115.0,0.0003392]
[1742451357922,0.87839836,86116.0,86115.0,0.0003392]
[1742451358463,0.87439836,86116.0,86115.0,0.0003392]
[1742451358859,0.87739836,86116.0,86115.0,0.0003392]
[1742451359170,0.74895836,86116.0,86115.0,0.0003392]
[1742451360159,0.74595836,86116.0,86115.0,0.0003392]
[1742451360562,0.74695836,86116.0,86115.0,0.0003392]
[1742451360918,0.74895836,86116.0,86115.0,0.0003392]
[1742451370272,0.02337633,86116.0,86115.0,0.0003392]
[1742451370523,0.0167816,86116.0,86115.0,0.0003392]
[1742451371718,0.13435663,86116.0,86115.0,0.0003392]
[1742451372073,0.13135663,86116.0,86115.0,0.0003392]
[1742451373256,0.0001696,86116.0,86115.0,0.0003392]
[1742451373455,0.1859646,86116.0,86115.0,0.0003392]
[1742451373658,0.0011696,86116.0,86115.0,0.0003392]
[1742451373857,0.01937488,86116.0,86115.0,0.0003392]
[1742451374605,0.20516988,86116.0,86115.0,0.0003392]
[1742451374823,0.21678188,86116.0,86115.0,0.0003392]
[1742451375024,0.21578188,86116.0,86115.0,0.0003392]
[1742451375220,0.21678188,86116.0,86115.0,0.0003392]
[1742451375935,0.21578188,86116.0,86115.0,0.0003392]
[1742451376262,0.01837488,86116.0,86115.0,0.0003392]
[1742451376997,0.02998688,86116.0,86115.0,0.0003392]
[1742451377406,0.01837488,86116.0,86115.0,0.0003392]
[1742451378908,0.02998688,86116.0,86115.0,0.0003392]
[1742451379113,0.01837488,86116.0,86115.0,0.0003392]
[1742451379317,0.02998688,86116.0,86115.0,0.0003392]
[1742451379929,0.01837488,86116.0,86115.0,0.0003392]
[1742451380650,0.0001696,86116.0,86115.0,0.0003392]
[1742451381302,0.0001696,86116.0,86115.0,0.1861372]
[1742451383887,0.0183736,86116.0,86115.0,0.1861372]
[1742451384677,0.0183736,86116.0,86115.0,0.1871372]
[1742451385079,0.0183736,86116.0,86115.0,0.0013392]
[1742451385641,0.0183736,86116.0,86115.0,0.0023392]
[1742451389480,0.0299856,86116.0,86115.0,0.0023392]
[1742451389897,0.14956063,86116.0,86115.0,0.0023392]
[1742451390138,0.22486063,86116.0,86115.0,0.0023392]
[1742451390549,0.20665663,86116.0,86115.0,0.0023392]
[1742451390746,0.22119748,86116.0,86115.0,0.0013392]
[1742451390946,0.22119748,86116.0,86115.0,0.0003392]
[1742451391444,0.22319748,86116.0,86115.0,0.0003392]
[1742451392050,0.13635663,86116.0,86115.0,0.0003392]
[1742451393977,0.15456304,86116.0,86115.0,0.0003392]
[1742451398773,0.15156304,86116.0,86115.0,0.0003392]
[1742451399174,0.15256304,86116.0,86115.0,0.0003392]
[1742451399748,0.15456304,86116.0,86115.0,0.0003392]
[1742451400601,0.0167816,86116.0,86115.0,0.0003392]
[1742451401912,0.0117816,86116.0,86115.0,0.0003392]
[1742451402112,0.0137816,86116.0,86115.0,0.0003392]
[1742451402330,0.0167816,86116.0,86115.0,0.0003392]
[1742451403828,0.03498781,86116.0,86115.0,0.0003392]
[1742451406574,0.28616284,86116.0,86115.0,0.0003392]
[1742451408938,0.30070369,86116.0,86115.0,0.0003392]
[1742451410244,0.70930369,86116.0,86115.0,0.0003392]
[1742451411457,0.71430369,86116.0,86115.0,0.0003392]
[1742451412034,0.71130369,86116.0,86115.0,0.0003392]
[1742451412482,1.01230369,86116.0,86115.0,2e-07]
[1742451412685,0.03115285,86114.0,86113.0,2e-07]
[1742451412917,0.52792788,86114.0,86113.0,2e-07]
[1742451413046,0.53676914,86114.0,86113.0,2e-07]
[1742451413855,0.58456914,86114.0,86113.0,2e-07]
[1742451414351,1.01816914,86114.0,86113.0,2e-07]
[1742451414971,1.02216914,86114.0,86113.0,2e-07]
[1742451415168,1.02616914,86114.0,86113.0,2e-07]
[1742451415568,1.01816914,86114.0,86113.0,2e-07]
[1742451415990,1.04683428,86114.0,86113.0,2e-07]
[1742451416631,1.05183428,86114.0,86113.0,2e-07]
[1742451418695,1.18043428,86114.0,86113.0,2e-07]
[1742451421456,1.73343428,86114.0,86113.0,2e-07]
[1742451421658,1.75880617,86114.0,86113.0,2e-07]
[1742451422064,1.73343428,86114.0,86113.0,2e-07]
[1742451422927,1.73343428,86114.0,86108.0,2e-07]
[1742451422928,0.61736485,86109.0,86108.0,2e-07]
[1742451423184,0.73693988,86109.0,86108.0,2e-07]
[1742451424623,0.74193988,86109.0,86108.0,2e-07]
[1742451424826,1.15053988,86109.0,86108.0,2e-07]
[1742451425474,1.15553988,86109.0,86108.0,2e-07]
[1742451426029,1.32231491,86109.0,86108.0,2e-07]
[1742451427464,1.31731491,86109.0,86108.0,2e-07]
[1742451427884,0.197487,86081.0,86076.0,0.000339]
[1742451428116,0.31706203,86081.0,86076.0,0.000339]
[1742451428648,0.33527509,86081.0,86076.0,0.000339]
[1742451429205,0.33527509,86081.0,86080.0,0.00046007]
[1742451429611,0.34674363,86081.0,86080.0,0.00046007]
[1742451430752,0.34874363,86081.0,86080.0,0.00046007]
[1742451431695,0.33053057,86081.0,86080.0,0.00046007]
[1742451432070,0.46101057,86081.0,86080.0,0.00046007]
[1742451433444,0.46045657,86081.0,86080.0,0.00046007]
[1742451435014,0.47866997,86081.0,86080.0,0.00046007]
[1742451436745,0.35018997,86081.0,86080.0,0.00046007]
[1742451436902,0.35018997,86081.0,86080.0,0.12536007]
[1742451437728,0.23061494,86081.0,86080.0,0.12536007]
[1742451437950,0.2191464,86081.0,86080.0,0.12536007]
[1742451440454,0.23079288,86081.0,86080.0,0.12536007]
[1742451443320,0.23079288,86081.0,86080.0,0.04686007]
[1742451443528,0.2191464,86081.0,86080.0,0.04686007]
[1742451444990,0.2171464,86081.0,86080.0,0.04686007]
[1742451445195,0.2191464,86081.0,86080.0,0.04686007]
[1742451446080,0.2171464,86081.0,86080.0,0.04686007]
[1742451446239,0.2181464,86081.0,86080.0,0.04686007]
[1742451447424,0.218316,86081.0,86080.0,0.04686007]
[1742451447621,0.218316,86081.0,86080.0,0.00046007]
[1742451448222,0.33789103,86081.0,86080.0,0.00046007]
[1742451450025,0.31967763,86081.0,86080.0,0.00046007]
[1742451453440,0.33789089,86081.0,86080.0,0.00046007]
[1742451460730,0.197511,86071.0,86070.0,0.04466907]
[1742451461537,0.21572598,86071.0,86070.0,0.04466907]
[1742451462680,0.011618,86070.0,86069.0,0.000339]
[1742451466540,0.13119303,86070.0,86069.0,0.000339]
[1742451468779,0.13219303,86070.0,86069.0,0.000339]
[1742451469845,0.13319303,86070.0,86069.0,0.000339]
[1742451482322,0.12157503,86070.0,86069.0,0.000339]
[1742451482548,0.13319303,86070.0,86069.0,0.000339]
[1742451482748,0.13336263,86070.0,86069.0,0.000339]
[1742451483187,0.13236263,86070.0,86069.0,0.000339]
[1742451483395,0.13136263,86070.0,86069.0,0.000339]
[1742451488035,0.0117876,86070.0,86069.0,0.000339]
[1742451489987,0.0001696,86070.0,86069.0,0.000339]
[1742451507699,0.1976826,86070.0,86069.0,0.000339]
[1742451511248,0.31725763,86070.0,86069.0,0.000339]
[1742451512570,0.31825763,86070.0,86069.0,0.000339]
[1742451513860,0.31925763,86070.0,86069.0,0.000339]
[1742451520676,0.36915763,86070.0,86069.0,0.000339]
[1742451520847,0.38737352,86070.0,86069.0,0.000339]
[1742451521198,0.48341437,86070.0,86069.0,0.000339]
[1742451521400,0.48241437,86070.0,86069.0,0.000339]
[1742451521771,0.89401417,86070.0,86069.0,0.000339]
[1742451522188,0.89701417,86070.0,86069.0,0.000339]
[1742451522369,0.89001417,86070.0,86069.0,0.000339]
[1742451522578,1.01849417,86070.0,86069.0,0.000339]
[1742451523199,1.02349417,86070.0,86069.0,0.000339]
[1742451523354,1.02749417,86070.0,86069.0,0.000339]
[1742451523688,1.00927828,86070.0,86069.0,0.000339]
[1742451524755,1.00427828,86070.0,86069.0,0.000339]
[1742451525296,1.00827828,86070.0,86069.0,0.000339]
[1742451525681,0.87979828,86070.0,86069.0,0.000339]
[1742451525839,1.00827828,86070.0,86069.0,0.000339]
[1742451526726,0.4167694,86070.0,86069.0,0.000339]
[1742451526927,0.4167694,86070.0,86069.0,0.078839]
[1742451527201,0.43498471,86070.0,86069.0,0.078839]
[1742451527641,0.02638491,86070.0,86069.0,0.078839]
[1742451527845,0.02238491,86070.0,86069.0,0.078839]
[1742451528069,0.01838491,86070.0,86069.0,0.078839]
[1742451528242,0.02138491,86070.0,86069.0,0.078839]
[1742451528441,0.02438491,86070.0,86069.0,0.078839]
[1742451528670,0.01838491,86070.0,86069.0,0.078839]
[1742451536560,0.01838491,86070.0,86069.0,0.000339]
[1742451541482,0.03000291,86070.0,86069.0,0.000339]
[1742451542120,0.01838491,86070.0,86069.0,0.000339]
[1742451550831,0.03000291,86070.0,86069.0,0.000339]
[1742451551569,0.01838491,86070.0,86069.0,0.000339]
[1742451552051,0.03000291,86070.0,86069.0,0.000339]
[1742451555745,0.22457794,86070.0,86069.0,0.000339]
[1742451556093,0.20636263,86070.0,86069.0,0.000339]
[1742451557189,0.20836263,86070.0,86069.0,0.000339]
[1742451557734,0.21136263,86070.0,86069.0,0.000339]
[1742451559087,0.22957849,86070.0,86069.0,0.000339]
[1742451562058,0.22945903,86070.0,86069.0,0.000339]
[1742451572486,0.22849903,86070.0,86069.0,0.000339]
[1742451576859,0.22866853,86070.0,86069.0,0.000339]
[1742451582285,0.15366853,86070.0,86069.0,0.000339]
[1742451585194,0.1514464,86070.0,86069.0,0.000339]
[1742451587419,0.02338536,86070.0,86069.0,0.000339]
[1742451587725,0.22089836,86070.0,86069.0,0.000339]
[1742451588426,0.21789836,86070.0,86069.0,0.000339]
[1742451588610,0.21589836,86070.0,86069.0,0.000339]